bitfinex/quotes_BTCUSD_20250512
["timestamp","ask_amount","ask_price","bid_price","bid_amount"]
[1747076572611,0.13438124,101830.0,101820.0,1.47764851]
[1747076573045,0.13638124,101830.0,101820.0,1.47864851]
[1747076573268,0.1272776,101830.0,101820.0,1.47864851]
[1747076573491,0.1272776,101830.0,101820.0,1.57450281]
[1747076575261,0.0272776,101830.0,101820.0,1.60580281]
[1747076575479,0.0272776,101830.0,101820.0,1.83112234]
[1747076576305,0.0252776,101830.0,101820.0,1.83012234]
[1747076576510,0.0252776,101830.0,101820.0,1.73526804]
[1747076577353,0.0252776,101830.0,101820.0,1.83112234]
[1747076580357,0.0252776,101830.0,101820.0,1.61165794]
[1747076580566,0.0252776,101830.0,101820.0,1.62147851]
[1747076580916,0.0252776,101830.0,101820.0,1.96856871]
[1747076581323,0.0252776,101830.0,101820.0,1.62147851]
[1747076581534,0.0252776,101830.0,101820.0,1.96856871]
[1747076582245,0.0252776,101830.0,101820.0,2.12472301]
[1747076583467,0.0252776,101830.0,101820.0,2.22057731]
[1747076583984,0.0252776,101830.0,101820.0,2.64493731]
[1747076584496,0.0252776,101830.0,101820.0,2.54908301]
[1747076584701,0.0252776,101830.0,101820.0,2.54808301]
[1747076584874,0.0252776,101830.0,101820.0,2.55008301]
[1747076585304,0.0252776,101830.0,101820.0,2.56462386]
[1747076586358,0.24132288,101830.0,101820.0,2.16353081]
[1747076586574,0.0252776,101830.0,101820.0,2.03701804]
[1747076586780,0.0252776,101830.0,101820.0,2.0468389]
[1747076587011,0.0252776,101830.0,101820.0,2.1426932]
[1747076587233,6e-05,101860.0,101840.0,0.01]
[1747076587456,6e-05,101860.0,101850.0,1.97690831]
[1747076587690,0.00054876,101860.0,101850.0,2.35457035]
[1747076587923,0.00054876,101860.0,101850.0,3.02974455]
[1747076588178,0.0252544,101870.0,101860.0,0.64094771]
[1747076588404,0.3,101890.0,101880.0,0.13334042]
[1747076588633,0.0005,101900.0,101890.0,0.56573246]
[1747076588869,0.0005,101900.0,101890.0,0.6983353]
[1747076589091,0.0005,101900.0,101890.0,0.78786554]
[1747076589345,0.00981094,101920.0,101910.0,0.22568816]
[1747076589346,0.6,101920.0,101910.0,0.22568816]
[1747076589562,0.6,101920.0,101910.0,1.22266656]
[1747076589563,0.0958543,101920.0,101910.0,1.22266656]
[1747076589815,0.09599816,101920.0,101910.0,0.61550755]
[1747076590071,0.09599816,101920.0,101910.0,1.68621899]
[1747076590562,0.0253667,101930.0,101910.0,1.61180612]
[1747076590814,0.37402487,101950.0,101940.0,0.09114635]
[1747076591054,0.07402487,101950.0,101940.0,0.84645465]
[1747076591302,0.16987917,101950.0,101940.0,2.04877395]
[1747076591557,0.07402487,101950.0,101940.0,1.48173772]
[1747076591792,0.07402487,101950.0,101940.0,1.18247334]
[1747076592023,0.07402487,101950.0,101940.0,1.58442034]
[1747076592303,0.07402487,101950.0,101940.0,1.61902034]
[1747076592548,0.07402487,101950.0,101940.0,0.74967272]
[1747076592794,0.07402487,101950.0,101940.0,1.38227134]
[1747076593150,0.07402487,101950.0,101940.0,0.91487072]
[1747076593352,0.07402487,101950.0,101940.0,1.38227134]
[1747076593560,0.07402487,101950.0,101940.0,1.69754934]
[1747076593561,0.06902487,101950.0,101940.0,1.69754934]
[1747076593772,0.06902487,101950.0,101940.0,1.69554934]
[1747076594002,0.16240544,101980.0,101970.0,0.22555536]
[1747076594003,0.0725,101980.0,101970.0,0.22555536]
[1747076594230,0.2470209,101980.0,101970.0,0.21062992]
[1747076594472,0.32126864,101980.0,101970.0,0.22043605]
[1747076594709,0.10634257,101980.0,101970.0,0.67334343]
[1747076594954,0.01048827,101980.0,101970.0,1.03295598]
[1747076595167,0.01048827,101980.0,101970.0,0.55774942]
[1747076595383,0.01048827,101980.0,101970.0,0.57736197]
[1747076595609,0.01048827,101980.0,101970.0,1.22023566]
[1747076595891,0.01048827,101980.0,101970.0,0.44394126]
[1747076595892,0.03009889,101980.0,101970.0,0.44394126]
[1747076596125,0.0300987,101980.0,101970.0,0.60567633]
[1747076596357,0.23602113,101980.0,101970.0,0.78992729]
[1747076596580,0.25801635,101980.0,101970.0,0.10394126]
[1747076596790,0.93932002,101980.0,101970.0,0.10394126]
[1747076597003,0.7558394,101980.0,101970.0,0.10394126]
[1747076597707,0.63826519,101980.0,101970.0,0.05019855]
[1747076598171,1.40566581,101980.0,101970.0,0.05019855]
[1747076598426,1.56166581,101980.0,101970.0,0.02649876]
[1747076598679,0.78614396,101970.0,101960.0,0.07383853]
[1747076598918,0.78614396,101970.0,101950.0,0.08599393]
[1747076598919,0.80596292,101960.0,101950.0,0.08599393]
[1747076599162,2.21329214,101960.0,101950.0,0.08599393]
[1747076599405,1.04591315,101940.0,101930.0,0.17853292]
[1747076599636,1.77742428,101940.0,101930.0,0.17853292]
[1747076599884,1.79704298,101940.0,101930.0,0.17853292]
[1747076600120,1.02964236,101940.0,101930.0,0.17853292]
[1747076600358,1.59289728,101940.0,101930.0,0.17853292]
[1747076600608,1.02964236,101940.0,101930.0,0.17853292]
[1747076600834,1.02964236,101940.0,101930.0,0.17902119]
[1747076601064,0.20566322,101940.0,101930.0,0.41447552]
[1747076601288,0.32562136,101940.0,101930.0,0.74466554]
[1747076601520,0.86475965,101940.0,101930.0,0.34048827]
[1747076601757,1.33081395,101940.0,101930.0,0.34148827]
[1747076602007,1.33481395,101940.0,101930.0,0.00248827]
[1747076602277,1.16741333,101940.0,101930.0,0.00248827]
[1747076602754,1.63481395,101940.0,101930.0,0.00248827]
[1747076603243,1.83710784,101940.0,101930.0,0.00248827]
[1747076603751,1.84609819,101940.0,101930.0,0.00248827]
[1747076603981,1.81541715,101940.0,101930.0,0.00248827]
[1747076604216,1.8064268,101940.0,101930.0,0.00248827]
[1747076604446,1.33002618,101940.0,101930.0,0.00148827]
[1747076604703,1.9012811,101940.0,101930.0,0.00248827]
[1747076605152,1.8932811,101940.0,101930.0,0.00148827]
[1747076605380,0.5863367,101930.0,101920.0,0.34]
[1747076605627,0.21587568,101910.0,101900.0,0.52172812]
[1747076605878,0.21587568,101910.0,101900.0,0.69745627]
[1747076605879,0.0294357,101910.0,101900.0,0.69745627]
[1747076606147,0.01962361,101910.0,101900.0,0.26545618]
[1747076606383,0.65848225,101910.0,101900.0,0.05937198]
[1747076606644,1.47127118,101910.0,101900.0,0.05937198]
[1747076607120,1.50247118,101910.0,101900.0,0.05937198]
[1747076607358,1.80247118,101910.0,101900.0,0.05937198]
[1747076607574,1.30387056,101910.0,101900.0,0.07401065]
[1747076607789,1.00387056,101910.0,101900.0,0.07701065]
[1747076608000,0.88839159,101910.0,101900.0,0.28309485]
[1747076608221,0.4083,101910.0,101900.0,0.41908491]
[1747076608435,0.49969498,101920.0,101910.0,0.20606407]
[1747076608681,0.51931773,101920.0,101910.0,0.21587645]
[1747076608864,0.51931773,101920.0,101910.0,0.20606407]
[1747076609077,0.51931763,101920.0,101910.0,0.21587626]
[1747076609290,0.51931763,101920.0,101910.0,0.21587636]
[1747076609716,0.51350621,101920.0,101900.0,0.35740713]
[1747076609927,0.00981171,101910.0,101900.0,0.36722095]
[1747076610155,0.005,101950.0,101940.0,0.30416258]
[1747076610377,0.01002022,101980.0,101970.0,0.58834923]
[1747076610596,0.01002022,101980.0,101970.0,1.48464985]
[1747076610830,0.01002022,101980.0,101970.0,1.02705536]
[1747076611284,0.001,101980.0,101970.0,1.02705536]
[1747076611496,0.00148827,101980.0,101970.0,1.02705536]
[1747076611715,0.00148827,101980.0,101970.0,1.14443293]
[1747076611936,0.00348827,101980.0,101970.0,1.21138723]
[1747076612152,0.00348827,101980.0,101970.0,1.21438723]
[1747076612361,0.00348827,101980.0,101970.0,1.83451321]
[1747076612609,0.00348827,101980.0,101970.0,0.8645811]
[1747076612822,0.0321247,101980.0,101970.0,0.37853293]
[1747076613041,0.23804761,101980.0,101970.0,0.12037757]
[1747076613263,0.01251437,101980.0,101970.0,0.34789396]
[1747076613484,0.3178447,101980.0,101970.0,0.37833284]
[1747076613961,0.36042059,101980.0,101970.0,0.37833284]
[1747076614178,0.35061542,101980.0,101970.0,0.37833284]
[1747076614393,0.35962059,101980.0,101970.0,0.37833284]
[1747076614603,0.57534866,101980.0,101970.0,0.32046788]
[1747076614813,0.36942604,101980.0,101970.0,0.3302741]
[1747076615054,1.03294411,101980.0,101970.0,0.10471874]
[1747076615355,1.18823841,101980.0,101970.0,0.10471874]
[1747076615580,0.53627779,101980.0,101970.0,0.10471874]
[1747076615816,0.69035779,101980.0,101970.0,0.10471874]
[1747076616056,0.60817674,101980.0,101970.0,0.10471874]
[1747076616283,0.59837129,101980.0,101970.0,0.10471874]
[1747076616519,0.58856555,101980.0,101970.0,0.10471874]
[1747076616684,0.01251437,101980.0,101970.0,0.10471874]
[1747076616967,0.22824264,101980.0,101970.0,0.11452554]
[1747076617168,0.22824264,101980.0,101970.0,0.10171874]
[1747076617169,0.29727501,101980.0,101970.0,0.10171874]
[1747076617375,0.31308037,101980.0,101970.0,0.31846797]
[1747076617597,0.21737229,101980.0,101970.0,0.10371874]
[1747076617764,0.77462721,101980.0,101970.0,0.10271874]
[1747076617963,0.80462721,101980.0,101970.0,0.10271874]
[1747076618131,0.34022659,101980.0,101970.0,0.10271874]
[1747076618335,0.90348151,101980.0,101970.0,0.10271874]
[1747076618541,1.23358151,101980.0,101970.0,0.10271874]
[1747076618743,1.23358151,101980.0,101970.0,0.04456929]
[1747076619207,1.17226145,101980.0,101970.0,0.04456929]
[1747076619369,1.17726145,101980.0,101970.0,0.04456929]
[1747076620004,1.18726145,101980.0,101970.0,0.04456929]
[1747076620169,1.17726145,101980.0,101970.0,0.04456929]
[1747076620373,1.18726145,101980.0,101970.0,0.04456929]
[1747076620575,1.19726145,101980.0,101970.0,0.04456929]
[1747076620778,1.19226145,101980.0,101970.0,0.04456929]
[1747076621261,1.19226145,101980.0,101970.0,0.001]
[1747076622357,0.2157702,101960.0,101950.0,0.04558551]
[1747076622570,1.46535747,101960.0,101950.0,0.04558551]
[1747076622784,1.77535747,101960.0,101950.0,0.04558551]
[1747076623049,1.40795685,101960.0,101950.0,0.04558551]
[1747076623245,1.87535747,101960.0,101950.0,0.04558551]
[1747076623979,0.21581253,101940.0,101930.0,0.16792466]
[1747076624198,0.31166683,101940.0,101930.0,0.16792466]
[1747076624403,0.28099405,101940.0,101930.0,0.16792466]
[1747076624640,0.28099405,101940.0,101930.0,0.37394829]
[1747076624641,0.30061275,101940.0,101930.0,0.37394829]
[1747076624848,0.50942222,101940.0,101930.0,0.16792466]
[1747076625047,0.49961301,101940.0,101930.0,0.16792466]
[1747076625247,0.49961301,101940.0,101930.0,0.16841293]
[1747076625453,0.54394711,101940.0,101930.0,0.09074633]
[1747076625657,0.63980141,101940.0,101930.0,0.09074633]
[1747076626415,1.10720203,101940.0,101930.0,0.09074633]
[1747076626634,1.40720203,101940.0,101930.0,0.09074633]
[1747076627618,0.93980141,101940.0,101930.0,0.09074633]
[1747076627822,0.89546731,101940.0,101930.0,0.09074633]
[1747076628431,0.89546731,101940.0,101930.0,0.29677006]
[1747076628645,0.88565782,101940.0,101930.0,0.09074633]
[1747076629236,0.88565782,101940.0,101930.0,0.00148827]
[1747076629441,0.98151212,101940.0,101930.0,0.00148827]
[1747076629645,0.98151212,101940.0,101930.0,0.207512]
[1747076629850,0.98151212,101940.0,101930.0,0.00148827]
[1747076630076,0.99058028,101940.0,101930.0,0.00148827]
[1747076631256,0.22488069,101940.0,101930.0,0.25810135]
[1747076631504,0.21507148,101940.0,101930.0,0.00148827]
[1747076631719,0.31092578,101940.0,101930.0,0.04707378]
[1747076631893,0.30185762,101940.0,101930.0,0.04707378]
[1747076632269,0.60185762,101940.0,101930.0,0.04707378]
[1747076632493,0.98151192,101940.0,101930.0,0.04707378]
[1747076632694,0.99058008,101940.0,101930.0,0.04707378]
[1747076633476,0.99058008,101940.0,101930.0,0.04545404]
[1747076633677,1.00038977,101940.0,101930.0,0.04545404]
[1747076633885,0.99058028,101940.0,101930.0,0.04545404]
[1747076634286,0.95113871,101940.0,101930.0,0.04545404]
[1747076634950,0.00906816,101940.0,101930.0,0.31670797]
[1747076635162,0.01887717,101940.0,101930.0,0.33159791]
[1747076635366,0.01961822,101940.0,101930.0,0.30199791]
[1747076635559,0.02942742,101940.0,101930.0,0.30199791]
[1747076635766,0.01961812,101940.0,101930.0,0.30199791]
[1747076635975,0.07406743,101940.0,101930.0,0.27109791]
[1747076636544,0.36763692,101940.0,101930.0,0.27109791]
[1747076636745,0.35782743,101940.0,101930.0,0.27109791]
[1747076637158,0.00906816,101940.0,101930.0,0.33249791]
[1747076637360,0.00906816,101940.0,101930.0,0.26128793]
[1747076637574,1.38813561,101940.0,101930.0,0.04545404]
[1747076637774,0.92073499,101940.0,101930.0,0.04545404]
[1747076639060,1.38813561,101940.0,101930.0,0.04545404]
[1747076639261,1.51808991,101940.0,101930.0,0.04545404]
[1747076639468,1.08168929,101940.0,101930.0,0.04545404]
[1747076639680,1.23360991,101940.0,101930.0,0.04545404]
[1747076640307,1.20260991,101940.0,101930.0,0.04545404]
[1747076640514,1.21025499,101940.0,101930.0,0.04545404]
[1747076640718,1.21025499,101940.0,101930.0,0.00148827]
[1747076641558,1.21027193,101940.0,101930.0,0.00148827]
[1747076642396,0.32575193,101940.0,101930.0,0.00148827]
[1747076642569,0.60443193,101940.0,101930.0,0.207512]
[1747076642769,0.59462272,101940.0,101930.0,0.00148827]
[1747076643035,0.69047702,101940.0,101930.0,0.00148827]
[1747076644321,1.16287764,101940.0,101930.0,0.00148827]
[1747076644582,1.13902521,101940.0,101930.0,0.00148827]
[1747076644824,0.67162459,101940.0,101930.0,0.00148827]
[1747076645282,0.67162459,101940.0,101930.0,0.19770135]
[1747076645283,0.08108697,101940.0,101930.0,0.19770135]
[1747076645508,0.30936105,101940.0,101930.0,0.29023214]
[1747076645766,0.0090851,101940.0,101930.0,0.29023214]
[1747076645986,0.30253402,101940.0,101930.0,0.29023214]
[1747076646214,0.32287702,101940.0,101930.0,0.28042216]
[1747076646437,0.51907085,101940.0,101930.0,0.26080135]
[1747076646656,0.50926193,101940.0,101930.0,0.29023262]
[1747076646918,0.31234303,101940.0,101930.0,0.30985277]
[1747076647107,0.2927251,101940.0,101930.0,0.67091779]
[1747076647364,0.0090851,101940.0,101930.0,0.88797515]
[1747076647595,0.001,101960.0,101950.0,0.3137488]
[1747076648031,0.001,101960.0,101950.0,0.4096031]
[1747076648247,0.52580053,101970.0,101960.0,0.30391834]
[1747076648454,0.50915555,101970.0,101960.0,0.28430387]
[1747076648669,0.50915555,101970.0,101960.0,0.29411134]
[1747076648894,0.51896235,101970.0,101960.0,0.31372581]
[1747076649127,0.20596589,101990.0,101980.0,0.27002262]
[1747076649339,0.49937048,101990.0,101980.0,0.0641]
[1747076649580,0.49937048,101990.0,101980.0,0.033]
[1747076649581,0.50620872,101990.0,101980.0,0.033]
[1747076649791,0.21574673,101980.0,101970.0,0.01454085]
[1747076650010,0.21574673,101980.0,101970.0,0.04754085]
[1747076650205,0.28598133,101980.0,101970.0,0.033]
[1747076650347,0.02941876,101970.0,101960.0,0.29848207]
[1747076650578,0.00980603,101970.0,101960.0,0.31302292]
[1747076650965,0.02886897,101980.0,101970.0,0.30449621]
[1747076651210,0.04847988,101980.0,101970.0,0.30449621]
[1747076651411,0.01906371,101980.0,101970.0,0.30449621]
[1747076651655,0.29555973,101980.0,101970.0,0.29469008]
[1747076651863,0.30536547,101980.0,101970.0,0.29469008]
[1747076652103,0.27594997,101980.0,101970.0,0.0644]
[1747076652300,0.21574894,101970.0,101960.0,0.64221554]
[1747076652512,0.02941886,101970.0,101960.0,0.66182982]
[1747076653142,0.25521187,101970.0,101960.0,0.62260088]
[1747076653410,0.25521187,101970.0,101960.0,0.64221563]
[1747076653620,0.04926915,101970.0,101960.0,0.65302272]
[1747076654039,0.01961283,101970.0,101960.0,0.65302272]
[1747076654688,0.30319698,101980.0,101970.0,0.31310262]
[1747076654891,0.28358636,101980.0,101970.0,0.31310262]
[1747076655171,0.00014636,101980.0,101970.0,1.30871678]
[1747076655368,0.00014636,101980.0,101970.0,1.21668415]
[1747076655779,0.00114636,101980.0,101970.0,0.74895692]
[1747076656039,0.00114636,101980.0,101970.0,1.21668415]
[1747076656243,0.00014636,101980.0,101970.0,1.14895692]
[1747076656445,0.00014636,101980.0,101970.0,1.24481122]
[1747076656569,0.00014636,101980.0,101970.0,1.24881122]
[1747076656976,0.00014636,101980.0,101970.0,1.71653845]
[1747076657191,0.00014636,101980.0,101970.0,1.72053845]
[1747076657601,0.00014636,101980.0,101970.0,1.62468415]
[1747076658004,0.21587425,101980.0,101970.0,0.0712]
[1747076658231,0.76226808,101980.0,101970.0,0.008]
[1747076658417,0.79266808,101980.0,101970.0,0.008]
[1747076658641,0.42760925,101980.0,101970.0,0.008]
[1747076658876,1.29012492,101980.0,101970.0,0.004]
[1747076659273,1.2992373,101980.0,101970.0,0.004]
[1747076659526,0.75384347,101980.0,101970.0,0.004]
[1747076659719,1.09638226,101980.0,101970.0,0.004]
[1747076660118,1.09538226,101980.0,101970.0,0.004]
[1747076660323,1.09538226,101980.0,101950.0,0.25749941]
[1747076660324,0.22557719,101960.0,101950.0,0.25749941]
[1747076660526,0.4990502,101960.0,101950.0,0.25749941]
[1747076661165,0.48924292,101960.0,101950.0,0.23788254]
[1747076661367,0.30289485,101960.0,101950.0,0.24769107]
[1747076661572,0.30492338,101980.0,101970.0,0.20594272]
[1747076661721,0.03922576,101970.0,101960.0,0.64381862]
[1747076661923,0.23536187,101970.0,101960.0,0.61171881]
[1747076662123,0.02941896,101970.0,101960.0,0.62152609]
[1747076662322,0.01961235,101970.0,101960.0,0.66343318]
[1747076662527,0.21515692,101980.0,101970.0,0.29398989]
[1747076662751,0.52104821,101980.0,101970.0,0.0316]
[1747076662903,0.21574923,101970.0,101960.0,0.5822962]
[1747076663104,0.21574923,101970.0,101960.0,0.60191153]
[1747076663316,0.20694272,101970.0,101960.0,0.34]
[1747076663521,0.30279702,101970.0,101960.0,0.34]
[1747076663846,0.30279702,101970.0,101960.0,0.55577078]
[1747076664243,0.58607702,101970.0,101960.0,0.55577078]
[1747076664669,0.55541364,101970.0,101960.0,0.55577078]
[1747076664872,0.001,101970.0,101960.0,0.6519261]
[1747076665078,0.02061245,101970.0,101960.0,0.6519261]
[1747076665254,0.02061225,101970.0,101960.0,0.6519261]
[1747076665471,0.01080603,101970.0,101960.0,0.6519261]
[1747076665662,0.02061225,101970.0,101960.0,0.6519261]
[1747076665889,0.001,101970.0,101960.0,0.7377169]
[1747076666303,0.01080613,101970.0,101960.0,0.6519261]
[1747076666736,0.001,101970.0,101960.0,0.6519261]
[1747076666975,0.03041886,101970.0,101960.0,0.6519261]
[1747076667202,0.22655603,101970.0,101960.0,0.56695535]
[1747076667435,0.21674932,101970.0,101960.0,0.60111143]
[1747076667735,0.30689747,101970.0,101960.0,0.78534085]
[1747076667869,0.28728474,101970.0,101960.0,0.34]
[1747076668698,0.29638477,101970.0,101960.0,0.34]
[1747076669237,0.22584964,101970.0,101960.0,0.56557787]
[1747076669443,0.02971353,101970.0,101960.0,0.61669253]
[1747076669758,0.02061293,101970.0,101960.0,0.61669253]
[1747076670321,0.02061293,101970.0,101960.0,0.64939253]
[1747076670545,0.04022557,101970.0,101960.0,0.64939253]
[1747076670904,0.01080613,101970.0,101960.0,0.66393338]
[1747076671109,0.03041886,101970.0,101960.0,0.66393338]
[1747076671310,0.01080603,101970.0,101960.0,0.66393338]
[1747076671506,0.001,101970.0,101960.0,0.66393338]
[1747076672766,0.21674846,101970.0,101960.0,0.65412629]
[1747076672975,0.22655507,101970.0,101960.0,0.62142629]
[1747076673179,0.001,101970.0,101960.0,0.63123338]
[1747076673392,0.001,101970.0,101960.0,0.75998768]
[1747076673972,0.01080594,101970.0,101960.0,0.75998768]
[1747076674272,0.001,101970.0,101960.0,0.75998768]
[1747076675778,0.001,101970.0,101960.0,0.85584198]
[1747076676001,0.001,101970.0,101960.0,0.75998768]
[1747076676441,0.001,101970.0,101960.0,1.22771491]
[1747076677360,0.00014636,101980.0,101960.0,1.22771491]
[1747076677361,0.00014636,101980.0,101970.0,0.62895536]
[1747076677568,0.00014636,101980.0,101970.0,1.19253689]
[1747076677772,0.00014636,101980.0,101970.0,0.82066396]
[1747076678186,0.00014636,101980.0,101970.0,1.22066396]
[1747076678414,0.00014636,101980.0,101970.0,1.12480966]
[1747076678598,0.00114636,101980.0,101970.0,1.02895536]
[1747076678836,0.23648467,101980.0,101970.0,0.57029017]
[1747076678971,0.04946763,101980.0,101970.0,0.58990271]
[1747076679153,0.11214784,101980.0,101970.0,0.59970884]
[1747076679368,0.04946763,101980.0,101970.0,0.59970884]
[1747076679571,0.01024639,101980.0,101970.0,1.19619037]
[1747076679789,0.01024639,101980.0,101970.0,1.22659037]
[1747076680192,0.01024639,101980.0,101970.0,0.75886314]
[1747076681113,0.00114636,101980.0,101970.0,0.66300884]
[1747076681532,0.00114636,101980.0,101970.0,0.85471744]
[1747076681738,0.01024639,101980.0,101970.0,0.75886314]
[1747076682725,0.00114636,101980.0,101970.0,0.75886314]
[1747076683674,0.0207565,101980.0,101970.0,0.75886314]
[1747076683921,0.02075659,101980.0,101970.0,0.75886314]
[1747076684090,0.05610513,101980.0,101970.0,0.72266382]
[1747076684297,0.06591078,101980.0,101970.0,0.72266382]
[1747076684472,0.26202766,101980.0,101970.0,0.66034515]
[1747076684677,0.21175963,101980.0,101970.0,0.09005498]
[1747076684898,0.30761393,101980.0,101970.0,0.29599789]
[1747076685161,0.30761393,101980.0,101970.0,0.6556112]
[1747076685305,0.30761393,101980.0,101970.0,0.64580459]
[1747076685525,0.30761393,101980.0,101970.0,0.43986178]
[1747076685701,0.30761393,101980.0,101970.0,0.09005498]
[1747076685702,0.78272752,101980.0,101970.0,0.09005498]
[1747076685913,0.79182755,101980.0,101970.0,0.09005498]
[1747076686175,0.44546826,101980.0,101970.0,0.09005498]
[1747076686380,0.50377966,101980.0,101970.0,0.31561034]
[1747076686583,0.50377966,101980.0,101970.0,0.20594281]
[1747076686751,0.50377966,101980.0,101970.0,0.21574932]
[1747076686923,0.50377966,101980.0,101970.0,0.22555574]
[1747076687358,0.50377966,101980.0,101970.0,0.20594281]
[1747076687557,0.59963396,101980.0,101970.0,0.20594281]
[1747076687778,0.59963396,101980.0,101970.0,0.21574942]
[1747076687982,0.59963396,101980.0,101970.0,0.22555584]
[1747076688191,0.00910003,101980.0,101970.0,0.58990282]
[1747076688408,0.00910003,101980.0,101970.0,1.21816041]
[1747076688930,0.00910003,101980.0,101970.0,1.61816041]
[1747076689047,0.00910003,101980.0,101970.0,1.21816041]
[1747076689250,0.00986411,101990.0,101980.0,0.61297409]
[1747076689251,0.02876844,101990.0,101980.0,0.61297409]
[1747076689453,0.08607594,101990.0,101980.0,0.61297409]
[1747076689656,0.09588043,101990.0,101980.0,0.61297409]
[1747076689910,0.01896423,101990.0,101980.0,0.64497409]
[1747076690123,0.00916003,101990.0,101980.0,0.64497409]
[1747076690367,0.03076824,101990.0,101980.0,0.64497409]
[1747076690772,0.02166821,101990.0,101980.0,0.64497409]
[1747076691002,0.03147261,101990.0,101980.0,0.64497409]
[1747076691230,0.02166821,101990.0,101980.0,0.64497409]
[1747076691449,0.00206,101990.0,101980.0,0.64497409]
[1747076691649,0.00206,101990.0,101980.0,1.30418598]
[1747076692077,0.00206,101990.0,101980.0,1.33567871]
[1747076692274,0.00206,101990.0,101980.0,1.36974847]
[1747076692490,6e-05,101990.0,101980.0,1.33567871]
[1747076692698,0.00106,101990.0,101980.0,1.35059584]
[1747076693096,0.00106,101990.0,101980.0,1.44073526]
[1747076693432,6e-05,101990.0,101980.0,1.44073526]
[1747076693661,6e-05,101990.0,101980.0,1.44273526]
[1747076694089,6e-05,101990.0,101980.0,1.31538823]
[1747076694268,6e-05,101990.0,101980.0,1.31838823]
[1747076694916,6e-05,101990.0,101980.0,1.71838823]
[1747076695128,6e-05,101990.0,101980.0,1.25088494]
[1747076695518,0.00986411,101990.0,101980.0,1.25088494]
[1747076695847,6e-05,101990.0,101980.0,1.53388494]
[1747076696624,6e-05,101990.0,101980.0,2.01460855]
[1747076697474,0.04577896,102000.0,101990.0,0.29061112]
[1747076697766,0.04577896,102000.0,101990.0,0.38646542]
[1747076698274,0.04577896,102000.0,101990.0,0.78646542]
[1747076698698,0.06538525,102000.0,101990.0,0.75466542]
[1747076698934,0.05558201,102000.0,101990.0,0.75466542]
[1747076699144,0.05558201,102000.0,101990.0,0.75566542]
[1747076699359,0.06538535,102000.0,101990.0,0.35566542]
[1747076699563,0.10224698,102000.0,101990.0,0.58205227]
[1747076699775,0.10224688,102000.0,101990.0,0.65185647]
[1747076699997,0.05558201,102000.0,101990.0,0.65185647]
[1747076700210,0.05490727,102000.0,101990.0,1.12445976]
[1747076700424,0.07451356,102000.0,101990.0,0.65695647]
[1747076700640,0.05490727,102000.0,101990.0,0.65695647]
[1747076701077,0.06471032,102000.0,101990.0,0.61435227]
[1747076701298,0.11499084,102000.0,101990.0,0.56751161]
[1747076701538,0.07518878,102000.0,101990.0,0.57731581]
[1747076701767,0.04577896,102000.0,101990.0,0.57731581]
[1747076701982,0.04577896,102000.0,101990.0,0.65455666]
[1747076702380,0.04577896,102000.0,101990.0,0.74478483]
[1747076702599,0.04577896,102000.0,101990.0,0.71288483]
[1747076702778,0.12167102,102000.0,101990.0,0.66754398]
[1747076703042,0.13147465,102000.0,101990.0,0.66754398]
[1747076703263,0.04577896,102000.0,101990.0,0.66754398]
[1747076703483,0.04577896,102000.0,101990.0,0.74378483]
[1747076703698,0.04577896,102000.0,101990.0,4.46577932]
[1747076703968,0.00912831,102010.0,102000.0,1.09699231]
[1747076704174,0.0253667,102030.0,102020.0,1.11148896]
[1747076704386,0.0253667,102030.0,102020.0,1.49030326]
[1747076704387,0.025513,102030.0,102020.0,1.49030326]
[1747076704820,0.025513,102030.0,102020.0,2.10060799]
[1747076705033,0.025513,102030.0,102020.0,2.04429229]
[1747076705308,0.025513,102030.0,102020.0,1.85655556]
[1747076705516,0.025513,102030.0,102020.0,1.51865427]
[1747076705733,0.025513,102030.0,102020.0,1.98615756]
[1747076705967,0.01979537,102080.0,102020.0,4.07032946]
[1747076706186,0.01979537,102080.0,102060.0,0.34]
[1747076706187,0.30574077,102070.0,102060.0,0.34]
[1747076706397,0.31553777,102070.0,102060.0,0.34]
[1747076707268,0.59785777,102070.0,102060.0,0.34]
[1747076707706,0.2155803,102050.0,102040.0,0.36434092]
[1747076707919,0.2155803,102050.0,102040.0,0.34]
[1747076708133,0.0097994,102040.0,102030.0,0.48537645]
[1747076708351,0.23520022,102040.0,102030.0,0.44477629]
[1747076708569,0.01960139,102030.0,102020.0,0.20584179]
[1747076708780,0.01960082,102030.0,102020.0,0.65659005]
[1747076709008,0.00980027,102030.0,102020.0,0.65659005]
[1747076709218,0.02940109,102030.0,102020.0,0.65559005]
[1747076709442,0.03920174,102030.0,102020.0,0.65559005]
[1747076709668,0.24012259,102030.0,102020.0,0.09014533]
[1747076709883,0.27222259,102030.0,102020.0,0.09014533]
[1747076710096,0.83558018,102030.0,102020.0,0.09314533]
[1747076710383,0.86788018,102030.0,102020.0,0.09314533]
[1747076710595,1.47288018,102030.0,102020.0,0.09314533]
[1747076710800,1.47288018,102030.0,102020.0,0.09414533]
[1747076710801,1.48288018,102030.0,102020.0,0.09414533]
[1747076711017,1.00537689,102030.0,102020.0,0.09414533]
[1747076711234,0.91647656,102030.0,102020.0,0.09414533]
[1747076711447,1.19875656,102030.0,102020.0,0.09414533]
[1747076711669,1.18895591,102030.0,102020.0,0.004]
[1747076711884,1.22105591,102030.0,102020.0,0.004]
[1747076712095,1.22105591,102030.0,102020.0,0.006]
[1747076712284,1.31691021,102030.0,102020.0,0.002]
[1747076712524,1.34921021,102030.0,102020.0,0.002]
[1747076712734,0.20584189,102020.0,102010.0,0.34]
[1747076712953,0.30169619,102020.0,102010.0,0.55581132]
[1747076713157,0.30169619,102020.0,102010.0,0.54600846]
[1747076713366,0.34087643,102020.0,102010.0,0.34994926]
[1747076714015,1.08430077,102030.0,102020.0,0.20584198]
[1747076714248,1.17515507,102030.0,102020.0,0.00980199]
[1747076714454,1.17515507,102030.0,102010.0,0.56561379]
[1747076714455,0.03920606,102020.0,102010.0,0.56561379]
[1747076714663,0.04900843,102020.0,102010.0,0.57541627]
[1747076714871,0.13506074,102020.0,102010.0,0.58521865]
[1747076715084,0.14486273,102020.0,102010.0,0.58521865]
[1747076715261,0.14486264,102020.0,102010.0,0.58521797]
[1747076715519,0.04900834,102020.0,102010.0,0.58521797]
[1747076715931,0.04900891,102020.0,102010.0,0.58521797]
[1747076716149,0.05000891,102020.0,102010.0,0.24521797]
[1747076716368,0.2460489,102020.0,102010.0,0.24521797]
[1747076716839,0.23624739,102020.0,102010.0,0.23541569]
[1747076717060,0.32229998,102020.0,102010.0,0.0001463]
[1747076717279,0.39855058,102020.0,102010.0,0.0001463]
[1747076717497,0.42875058,102020.0,102010.0,0.0001463]
[1747076718378,0.43783966,102020.0,102010.0,0.0001463]
[1747076719214,0.47013966,102020.0,102010.0,0.0502463]
[1747076719859,0.37428536,102020.0,102010.0,0.0502463]
[1747076720069,0.34198536,102020.0,102010.0,0.0502463]
[1747076721412,0.83958865,102020.0,102010.0,0.0502463]
[1747076721626,1.43958865,102020.0,102010.0,0.0502463]
[1747076721858,1.44458865,102020.0,102010.0,0.0502463]